bitfinex-derivatives/quotes_SOLF0:USTF0_20250709
["timestamp","ask_amount","ask_price","bid_price","bid_amount"]
[1752052051903,2.46854912,152.33,152.32,6.5643]
[1752052053705,2.46854912,152.33,152.31,6.5647]
[1752052054903,0.0440389,152.33,152.31,6.5647]
[1752052058809,0.0440389,152.33,152.32,6.5643]
[1752052059208,0.0440389,152.33,152.32,8.98881022]
[1752052060405,2.42451022,152.37,152.32,2.42451022]
[1752052060708,2.42451022,152.37,152.34,2.42451022]
[1752052060906,2.42451022,152.37,152.33,2.42451022]
[1752052061202,8.98701022,152.37,152.34,6.5632]
[1752052061606,8.98701022,152.37,152.34,6.6109191]
[1752052063813,2.42451022,152.37,152.34,6.6109191]
[1752052064111,2.42451022,152.37,152.34,9.03542932]
[1752052065413,8.98671022,152.37,152.34,9.03542932]
[1752052065907,6.5626,152.36,152.34,2.47222932]
[1752052066113,2.42451022,152.37,152.34,2.47222932]
[1752052066717,8.98691022,152.37,152.34,9.03562932]
[1752052068415,8.98691022,152.37,152.34,6.6111191]
[1752052074721,6.5626,152.36,152.34,6.6111191]
[1752052075517,6.563,152.35,152.34,0.0477191]
[1752052075716,8.98751022,152.35,152.34,0.0477191]
[1752052078129,6.563,152.35,152.34,0.0477191]
[1752052078333,8.98751022,152.35,152.34,0.0477191]
[1752052078929,6.563,152.35,152.34,0.0477191]
[1752052079125,8.98751022,152.35,152.34,0.0477191]
[1752052082827,6.563,152.35,152.34,0.0477191]
[1752052083629,8.98751022,152.35,152.34,0.0477191]
[1752052102844,4.645,152.42,152.34,0.0477191]
[1752052103043,2.42451022,152.37,152.34,0.0477191]
[1752052103445,6.5622,152.37,152.35,6.5628]
[1752052104144,8.98641022,152.38,152.35,6.5628]
[1752052104345,2.42451022,152.37,152.35,6.5628]
[1752052104947,6.5619,152.38,152.35,6.5628]
[1752052105239,9.10967151,152.46,152.37,2.42451022]
[1752052105439,2.42451022,152.41,152.37,2.42451022]
[1752052105643,6.5609,152.4,152.37,8.98641022]
[1752052105845,6.5609,152.4,152.37,9.03689225]
[1752052106241,2.3358,152.46,152.37,2.47499225]
[1752052106544,2.42451022,152.41,152.38,2.42451022]
[1752052106739,2.42451022,152.41,152.37,2.47499225]
[1752052107245,2.42451022,152.41,152.37,9.03689225]
[1752052107444,7.81781901,152.45,152.37,9.03689225]
[1752052107445,2.42451022,152.4,152.37,0.05048203]
[1752052107846,8.98581022,152.39,152.37,0.05048203]
[1752052108442,2.42451022,152.38,152.37,0.05048203]
[1752052109750,8.98581022,152.39,152.37,0.05048203]
[1752052110753,2.42451022,152.4,152.37,6.61228203]
[1752052111557,8.98541022,152.4,152.37,6.61228203]
[1752052111754,7.86422739,152.44,152.38,2.42451022]
[1752052111959,4.53075018,152.43,152.41,2.42451022]
[1752052112252,8.98351022,152.45,152.41,2.42451022]
[1752052112652,8.98351022,152.45,152.42,6.5599]
[1752052113259,8.98351022,152.45,152.41,8.98471022]
[1752052113456,8.98371022,152.44,152.41,8.98471022]
[1752052113759,2.42451022,152.45,152.41,2.42451022]
[1752052114357,2.2726,152.48,152.41,2.42451022]
[1752052114556,2.42451022,152.45,152.42,6.5598]
[1752052114750,6.5583,152.46,152.42,6.5598]
[1752052115156,6.5587,152.45,152.42,6.5598]
[1752052118064,3.78501822,152.48,152.42,3.78501822]
[1752052118265,3.78501822,152.49,152.42,3.78501822]
[1752052118466,6.5576,152.48,152.44,6.5587]
[1752052118866,6.5576,152.48,152.44,6.60757936]
[1752052119367,6.5576,152.48,152.45,6.5586]
[1752052120760,6.5571,152.49,152.46,6.5582]
[1752052123570,6.5571,152.49,152.45,6.5585]
[1752052124065,6.5575,152.48,152.45,6.5585]
[1752052127167,6.5581,152.47,152.44,0.04887936]
[1752052128272,6.5581,152.47,152.44,6.60787936]
[1752052128674,6.5581,152.47,152.44,0.04887936]
[1752052129170,3.78501822,152.46,152.44,0.04887936]
[1752052130071,6.5587,152.45,152.44,0.04887936]
[1752052134965,3.78501822,152.46,152.4,6.5607]
[1752052134966,6.5601,152.42,152.4,6.5607]
[1752052136174,3.78501822,152.42,152.31,579.9092]
[1752052136472,3.78501822,152.42,152.39,0.04397365]
[1752052136774,6.5608,152.41,152.37,6.5619]
[1752052136975,3.78501822,152.42,152.37,6.5619]
[1752052137170,6.5608,152.41,152.37,6.5619]
[1752052137473,3.78501822,152.42,152.37,6.5619]
[1752052137872,3.78501822,152.42,152.36,6.5623]
[1752052138075,3.78501822,152.4,152.33,4.5304]
[1752052138378,6.5615,152.39,152.35,6.5627]
[1752052138567,0.0428805,152.38,152.35,6.5627]
[1752052140177,0.0428805,152.38,152.36,6.5624]
[1752052140378,0.0428805,152.38,152.34,3.78501822]
[1752052140878,0.0428805,152.38,152.37,6.5621]
[1752052143281,0.0428805,152.38,152.36,6.5624]
[1752052143677,0.0428805,152.38,152.33,4.5304]
[1752052143885,3.82789872,152.38,152.31,566.78]
[1752052144183,3.82789872,152.38,152.3,3.78501822]
[1752052144386,6.5628,152.36,152.33,6.5636]
[1752052144678,3.82789872,152.38,152.3,3.78501822]
[1752052145079,6.5623,152.37,152.34,6.5632]
[1752052145275,0.04393543,152.36,152.34,6.5632]
[1752052147671,0.04393543,152.36,152.28,197.1481]
[1752052147672,0.04393543,152.36,152.33,6.5636]
[1752052147980,0.04393543,152.36,152.31,3.78501822]
[1752052148174,0.04393543,152.36,152.28,4.5481]
[1752052148377,3.82895365,152.36,152.29,3.78501822]
[1752052149386,6.5632,152.35,152.31,6.5643]
[1752052149587,6.5632,152.35,152.29,3.78501822]
[1752052150189,6.5632,152.35,152.28,4.5481]
[1752052150381,6.5632,152.35,152.29,3.78501822]
[1752052150781,6.5632,152.35,152.32,6.5642]
[1752052152587,10.39165365,152.36,152.32,6.5642]
[1752052153686,6.60663543,152.36,152.33,6.5638]
[1752052153883,0.04393543,152.36,152.31,3.78501822]
[1752052154384,0.04393543,152.36,152.35,6.563]
[1752052155391,0.04393543,152.36,152.34,6.5632]
[1752052157387,0.04393543,152.36,152.35,6.563]
[1752052160596,3.78501822,152.41,152.37,6.5618]
[1752052160796,5.92301822,152.43,152.35,3.78501822]
[1752052161899,6.5606,152.41,152.37,6.60947685]
[1752052162292,6.5606,152.41,152.37,0.04777685]
[1752052162699,6.5606,152.41,152.38,6.5616]
[1752052162891,6.5609,152.4,152.37,0.04777685]
[1752052163896,3.78501822,152.41,152.37,0.04777685]
[1752052164395,6.5617,152.38,152.37,0.04777685]
[1752052169898,6.5631,152.35,152.32,6.5641]
[1752052170099,6.5631,152.35,152.31,3.78501822]
[1752052170292,3.78501822,152.35,152.29,2.3058]
[1752052170497,6.5637,152.34,152.31,6.5647]
[1752052171998,6.564,152.33,152.3,6.5649]
[1752052174303,6.5643,152.32,152.29,6.5654]
[1752052183697,6.5641,152.33,152.3,6.5651]
[1752052184402,6.5641,152.33,152.31,6.5647]
[1752052184598,6.5636,152.34,152.31,6.5647]
[1752052185198,10.34811822,152.35,152.32,6.5641]
[1752052185503,3.78501822,152.35,152.29,3.78501822]
[1752052186001,10.34831822,152.35,152.29,3.78501822]
[1752052186394,3.78501822,152.35,152.29,3.78501822]
[1752052186592,6.5635,152.34,152.31,6.5644]
[1752052187298,10.34821822,152.35,152.29,3.78501822]
[1752052187604,10.34821822,152.35,152.29,22.13551417]
[1752052187605,6.5632,152.35,152.29,22.13551417]
[1752052187902,3.78501822,152.36,152.29,22.13551417]
[1752052188802,6.5632,152.35,152.32,6.5643]
[1752052191009,3.78501822,152.39,152.31,22.13551417]
[1752052191207,5.95081822,152.41,152.33,3.78501822]
[1752052191408,6.5616,152.39,152.35,6.5628]
[1752052191607,6.61103834,152.39,152.35,6.5628]
[1752052192901,6.61103834,152.39,152.36,6.5625]
[1752052196409,0.04943834,152.39,152.37,6.562]
[1752052197612,6.61063834,152.39,152.36,6.5623]
[1752052200210,3.83445656,152.39,152.32,4.6725]
[1752052201224,6.5623,152.37,152.32,4.6725]
[1752052202425,6.5626,152.36,152.33,6.5635]
[1752052203724,6.5622,152.37,152.33,6.5635]
[1752052204525,3.83445656,152.39,152.32,4.6725]
[1752052204726,0.04943834,152.39,152.32,4.6725]
[1752052205032,6.5623,152.37,152.33,6.5635]
[1752052207327,6.5625,152.36,152.33,6.5635]
[1752052207627,3.83445656,152.39,152.33,6.5635]
[1752052207818,6.5624,152.37,152.33,6.5635]
[1752052208225,6.5624,152.37,152.33,6.60529608]
[1752052208421,6.5625,152.36,152.33,6.60529608]
[1752052209027,6.5622,152.37,152.33,6.60529608]
[1752052210832,6.5622,152.37,152.34,6.5633]
[1752052211127,0.04943834,152.39,152.34,3.78501822]
[1752052211624,0.04943834,152.39,152.36,6.5622]
[1752052211829,0.04943834,152.39,152.34,3.78501822]
[1752052212029,0.04943834,152.39,152.38,6.5616]
[1752052212230,0.04943834,152.39,152.38,10.34661822]
[1752052213025,6.5592,152.44,152.41,6.5601]
[1752052213427,2.2571,152.48,152.41,6.5601]
[1752052213630,12.40848739,152.47,152.42,6.5599]
[1752052213932,3.78501822,152.47,152.42,6.5599]
[1752052214331,3.78501822,152.47,152.43,0.04585111]
[1752052214534,6.5589,152.45,152.43,0.04585111]
[1752052215626,6.559,152.44,152.43,0.04585111]
[1752052215826,3.78501822,152.45,152.38,4.6707]
[1752052216031,3.78501822,152.43,152.38,4.6707]
[1752052216233,10.34471822,152.43,152.39,6.5612]
[1752052217840,6.5601,152.42,152.38,11.2321]
[1752052218136,6.5601,152.42,152.38,4.6707]
[1752052218439,6.5597,152.43,152.39,6.5609]
[1752052219330,6.5609,152.4,152.38,4.6707]
[1752052219533,3.78501822,152.42,152.35,3.78501822]
[1752052220138,6.5604,152.41,152.37,6.5617]
[1752052220837,6.5608,152.4,152.37,6.5617]
[1752052222536,6.5605,152.41,152.37,6.5617]
[1752052223638,6.561,152.4,152.36,6.5623]
[1752052224041,6.561,152.4,152.35,3.78501822]
[1752052224339,6.5606,152.41,152.35,3.78501822]
[1752052225336,6.5606,152.41,152.37,6.5618]
[1752052225932,6.5604,152.41,152.37,6.5619]
[1752052227737,6.5604,152.41,152.38,6.5615]
[1752052227928,6.5601,152.42,152.38,6.5615]
[1752052228133,3.78501822,152.44,152.37,3.78501822]
[1752052228438,6.5595,152.43,152.39,6.5609]
[1752052229647,10.34421822,152.44,152.4,6.5605]
[1752052231233,6.5596,152.43,152.39,6.5609]
[1752052231840,6.5596,152.43,152.4,6.5608]
[1752052233840,6.5596,152.43,152.39,6.561]
[1752052236747,6.5596,152.43,152.4,6.5607]
[1752052239457,6.5592,152.44,152.41,6.5601]
[1752052240052,6.5595,152.43,152.4,6.5606]
[1752052243356,6.5595,152.43,152.39,6.561]
[1752052243556,6.5592,152.44,152.38,3.78501822]
[1752052243751,6.5592,152.44,152.4,6.5605]
[1752052243952,3.78501822,152.46,152.4,6.5605]
[1752052244853,3.78501822,152.46,152.39,6.561]
[1752052245151,6.5604,152.41,152.36,22.13551417]
[1752052245657,6.5604,152.41,152.38,6.5614]
[1752052246858,6.5608,152.4,152.38,6.5614]
[1752052247059,3.78501822,152.42,152.38,6.5614]
[1752052247357,6.5605,152.41,152.38,6.5614]
[1752052250060,6.5605,152.41,152.39,6.5612]
[1752052250258,6.5605,152.41,152.36,3.78501822]
[1752052250456,6.5605,152.41,152.38,6.5614]
[1752052251053,3.78501822,152.42,152.34,22.85939595]
[1752052251361,3.78501822,152.4,152.34,22.85939595]
[1752052251660,6.5615,152.39,152.36,6.5625]
[1752052252457,6.5619,152.38,152.34,11.0718]
[1752052252659,6.5619,152.38,152.34,2.2428]
[1752052253459,6.5619,152.38,152.35,6.5626]
[1752052256764,6.5614,152.39,152.35,6.5626]
[1752052258666,6.5614,152.39,152.36,6.5623]
[1752052261071,6.5614,152.39,152.37,6.562]
[1752052261264,10.34601822,152.4,152.34,2.2428]
[1752052261460,6.03881822,152.44,152.39,6.5608]
[1752052261660,6.5599,152.42,152.39,6.5608]
[1752052261870,6.03881822,152.44,152.39,6.5608]
[1752052262469,6.5598,152.43,152.39,6.5608]
[1752052262672,6.03881822,152.44,152.39,6.5608]
[1752052262861,6.03881822,152.44,152.37,3.78501822]
[1752052262862,6.03881822,152.44,152.38,6.5614]
[1752052263067,6.5602,152.42,152.38,6.5614]
[1752052263371,10.34521822,152.42,152.38,6.5614]
[1752052263568,6.5604,152.41,152.38,6.5614]
[1752052265375,3.78501822,152.39,152.37,18.35049595]
[1752052265680,3.78501822,152.39,152.35,18.35049595]
[1752052265982,6.5619,152.38,152.34,6.5631]
[1752052266279,7.91624817,152.42,152.32,22.13551417]
[1752052266476,6.561,152.4,152.32,18.35049595]
[1752052266671,6.561,152.4,152.33,3.78501822]
[1752052267173,6.561,152.4,152.33,22.13551417]
[1752052267381,6.561,152.4,152.36,6.5625]
[1752052269582,10.34541822,152.41,152.37,6.5619]
[1752052270177,3.78501822,152.39,152.34,18.35049595]
[1752052270479,3.78501822,152.41,152.34,22.13551417]
[1752052270680,6.561,152.4,152.35,6.5627]
[1752052270980,6.561,152.4,152.34,3.78501822]
[1752052271180,6.561,152.4,152.34,22.13551417]
[1752052271590,6.561,152.4,152.36,6.5624]
[1752052273183,6.5605,152.41,152.33,18.35049595]
[1752052273385,10.34551822,152.41,152.34,3.78501822]
[1752052273585,3.78501822,152.41,152.34,18.35049595]
[1752052273787,2.2538,152.44,152.34,18.35049595]
[1752052273983,16.51157986,152.43,152.33,18.35049595]
[1752052274183,6.5619,152.38,152.33,24.91399595]
[1752052274381,6.5619,152.38,152.3,3.78501822]
[1752052274382,6.5619,152.38,152.3,22.13551417]
[1752052274580,3.78501822,152.39,152.32,3.78501822]
[1752052274782,3.78501822,152.4,152.32,3.78501822]
[1752052275187,2.3007,152.42,152.34,6.563]
[1752052275188,6.5614,152.39,152.34,6.563]
[1752052275384,10.34641822,152.39,152.34,6.563]
[1752052275882,6.5617,152.38,152.34,6.563]
[1752052278188,6.5617,152.38,152.33,6.5636]
[1752052278788,6.5617,152.38,152.34,6.5633]
[1752052282991,8.98641787,152.38,152.34,8.98801787]
[1752052284285,2.42471787,152.37,152.34,6.5633]
[1752052285385,8.98701787,152.37,152.33,8.98831787]
[1752052285585,2.42471787,152.36,152.32,18.35049595]
[1752052285781,2.42471787,152.36,152.32,2.42471787]
[1752052285987,2.42471787,152.37,152.33,2.42471787]
[1752052287486,2.42471787,152.37,152.34,8.98801787]
[1752052287687,2.47010585,152.37,152.34,8.98801787]
[1752052288691,9.03220585,152.37,152.34,8.98801787]
[1752052289199,2.47010585,152.37,152.34,8.98801787]
[1752052289493,0.04538798,152.37,152.36,2.42471787]
[1752052289991,0.04538798,152.37,152.36,8.98721787]
[1752052291394,0.04538798,152.37,152.36,6.5625]
[1752052291793,0.04538798,152.37,152.36,8.98721787]
[1752052293394,0.04538798,152.37,152.36,6.5625]
[1752052294893,0.04538798,152.37,152.36,8.98721787]
[1752052295693,0.04538798,152.37,152.36,6.5625]
[1752052296088,0.04538798,152.37,152.35,6.5627]
[1752052296997,0.04538798,152.37,152.32,18.35049595]
[1752052296998,2.47010585,152.37,152.33,2.42471787]
[1752052297197,2.42471787,152.36,152.33,2.42471787]
[1752052298096,2.42471787,152.36,152.33,8.98821787]
[1752052298801,0.04538798,152.37,152.34,6.5633]
[1752052298993,0.04538798,152.37,152.31,22.13972655]
[1752052300404,0.04538798,152.37,152.34,6.563]
[1752052306206,0.04538798,152.37,152.35,6.5628]
[1752052308499,0.04538798,152.37,152.32,22.13972655]
[1752052308500,3.7892306,152.41,152.34,3.7892306]
[1752052308799,3.7892306,152.43,152.36,3.7892306]
[1752052309000,15.28502788,152.42,152.38,6.5614]
[1752052309196,6.5603,152.42,152.36,3.7892306]
[1752052309594,6.5601,152.42,152.38,6.5613]
[1752052310000,3.7892306,152.43,152.38,6.5613]
[1752052310203,6.5601,152.42,152.38,6.5613]
[1752052313109,6.5605,152.41,152.38,6.5613]
[1752052313511,6.5605,152.41,152.37,6.61130998]
[1752052314012,6.5615,152.39,152.37,0.04950998]
[1752052314215,3.7892306,152.41,152.37,0.04950998]
[1752052314511,3.7892306,152.39,152.37,0.04950998]
[1752052315608,6.5616,152.38,152.37,0.04950998]
[1752052317310,3.7892306,152.39,152.37,0.04950998]
[1752052318418,3.7892306,152.41,152.37,0.04950998]
[1752052318915,6.5615,152.39,152.37,0.04950998]
[1752052319416,6.5616,152.38,152.37,0.04950998]
[1752052320317,6.5614,152.39,152.37,0.04950998]
[1752052320820,3.7892306,152.41,152.37,0.04950998]
[1752052322521,6.5616,152.38,152.37,0.04950998]
[1752052324813,8.98660915,152.38,152.37,0.04950998]
[1752052326912,6.5616,152.38,152.37,0.04950998]
[1752052330024,10.35010968,152.39,152.37,0.04950998]
[1752052330316,3.78880968,152.42,152.37,0.04950998]
[1752052330518,4.14710374,152.41,152.37,0.04950998]
[1752052330716,6.5603,152.41,152.38,6.5614]
[1752052338633,6.5603,152.41,152.37,6.61130998]
[1752052339129,6.5608,152.4,152.37,6.61130998]
[1752052340419,6.5613,152.39,152.37,0.04950998]
[1752052343636,10.35040968,152.38,152.37,0.04950998]
[1752052348838,8.98649621,152.38,152.37,0.04950998]
[1752052350138,6.5616,152.38,152.37,0.04950998]
[1752052350338,8.98649621,152.38,152.37,0.04950998]
[1752052356841,2.42489621,152.38,152.37,0.04950998]
[1752052358644,8.98649621,152.38,152.37,0.04950998]
[1752052360137,2.42489621,152.38,152.37,0.04950998]
[1752052360741,8.98649621,152.38,152.37,0.04950998]
[1752052361142,2.42489621,152.38,152.37,0.04950998]
[1752052362238,2.42489621,152.39,152.37,0.04950998]
[1752052362442,8.98539621,152.41,152.37,2.47440619]
[1752052362744,2.42489621,152.41,152.37,2.47440619]
[1752052363044,2.42489621,152.41,152.38,6.5614]
[1752052363249,2.42489621,152.41,152.38,8.98629621]
[1752052363750,8.98539621,152.41,152.37,9.03620619]
[1752052364747,2.42489621,152.4,152.37,9.03620619]
[1752052365048,2.42489621,152.4,152.37,6.61130998]
[1752052365347,2.42489621,152.4,152.37,9.03620619]
[1752052365549,2.42489621,152.38,152.37,0.04950998]
[1752052366248,8.98649621,152.38,152.37,0.04950998]
[1752052367249,2.42489621,152.38,152.37,0.04950998]
[1752052368340,8.06962077,152.45,152.37,0.04950998]
[1752052368546,2.42489621,152.38,152.37,0.04950998]
[1752052369940,8.98649621,152.38,152.37,0.04950998]
[1752052374142,6.5616,152.38,152.37,0.04950998]
[1752052374345,8.98649621,152.38,152.37,0.04950998]
[1752052375449,6.5616,152.38,152.37,0.04950998]
[1752052375651,8.98649621,152.38,152.37,0.04950998]
[1752052389154,2.46708735,152.39,152.37,0.04950998]
[1752052389549,9.02838735,152.39,152.37,0.04950998]
[1752052395858,2.46708735,152.39,152.37,6.61140998]
[1752052396062,0.04219114,152.39,152.37,6.61140998]
[1752052396263,0.04219114,152.39,152.37,2.47440619]
[1752052396660,0.04219114,152.39,152.38,6.5616]
[1752052397063,0.04219114,152.39,152.37,6.61130998]
[1752052397265,0.04219114,152.39,152.37,9.03620619]
[1752052398368,0.04219114,152.39,152.38,6.5616]
[1752052399268,0.04219114,152.39,152.37,9.03620619]
[1752052399469,2.46708735,152.39,152.37,0.04950998]
[1752052400363,9.02828735,152.39,152.37,0.04950998]
[1752052400868,2.46708735,152.39,152.37,0.04950998]
[1752052401165,9.02848735,152.39,152.37,0.04950998]
[1752052403267,2.46708735,152.39,152.37,6.61150998]
[1752052403662,2.46708735,152.39,152.37,0.04950998]
[1752052404966,9.02838735,152.39,152.37,0.04950998]
[1752052405165,2.42489621,152.38,152.37,0.04950998]
[1752052405763,6.60349114,152.39,152.37,0.04950998]
[1752052405963,2.42489621,152.38,152.37,0.04950998]
[1752052406667,6.60349114,152.39,152.37,0.04950998]
[1752052406872,2.46708735,152.39,152.37,6.61150998]
[1752052408262,0.04219114,152.39,152.37,6.61150998]
[1752052408669,8.98649621,152.38,152.37,0.04950998]
[1752052410768,11.07048334,152.38,152.33,6.5636]
[1752052410961,2.42489621,152.35,152.33,6.5636]
[1752052411167,2.42489621,152.34,152.32,6.5641]
[1752052411361,2.42489621,152.33,152.32,6.5641]
[1752052415071,2.47248107,152.34,152.32,6.5641]
[1752052416471,9.03578107,152.34,152.3,168.01105364]
[1752052416670,2.42489621,152.32,152.28,18.35049595]
[1752052416971,2.42489621,152.3,152.26,20.77539216]
[1752052417375,2.42489621,152.3,152.26,2.42489621]
[1752052417572,2.47077903,152.3,152.25,213.68279595]
[1752052417774,2.47077903,152.3,152.28,6.5658]
[1752052420172,0.04588282,152.3,152.29,6.5655]
[1752052421068,3.79171306,152.36,152.33,6.5637]
[1752052421273,3.79171306,152.36,152.28,3.83376517]
[1752052421773,3.79171306,152.36,152.28,3.79171306]
[1752052422578,6.5631,152.35,152.32,6.564]
[1752052423667,3.79171306,152.34,152.3,0.046537]
[1752052423874,3.79171306,152.32,152.3,0.046537]
[1752052424177,10.35611306,152.32,152.3,0.046537]
[1752052426980,6.5646,152.31,152.3,0.046537]
[1752052428480,10.35611306,152.32,152.3,0.046537]
[1752052429383,3.79171306,152.32,152.3,0.046537]
[1752052431780,10.35591306,152.32,152.3,0.046537]
[1752052431979,3.79171306,152.32,152.3,0.046537]
[1752052432881,10.35591306,152.32,152.3,0.046537]
[1752052433086,6.5642,152.32,152.3,0.046537]
[1752052435580,10.35561306,152.33,152.3,0.046537]
[1752052436385,6.5642,152.32,152.3,0.046537]
[1752052436685,3.79171306,152.33,152.3,0.046537]
[1752052438485,6.5644,152.32,152.3,0.046537]
[1752052440788,2.42679788,152.31,152.3,0.046537]
[1752052441187,8.99129788,152.31,152.3,0.046537]
[1752052441588,4.4423,152.38,152.3,0.046537]
[1752052441790,2.42679788,152.31,152.3,0.046537]
[1752052443893,8.99139788,152.31,152.3,0.046537]
[1752052448192,6.5646,152.31,152.3,0.046537]
[1752052448395,8.99139788,152.31,152.3,0.046537]
[1752052449894,2.42679788,152.31,152.3,0.046537]
[1752052450399,8.99129788,152.31,152.3,0.046537]
[1752052452100,2.42679788,152.31,152.3,0.046537]
[1752052452695,6.5643,152.32,152.3,0.046537]
[1752052452896,2.42679788,152.31,152.3,0.046537]
[1752052455487,6.5646,152.31,152.3,0.046537]
[1752052455892,8.99139788,152.31,152.3,0.046537]
[1752052460801,6.5646,152.31,152.3,0.046537]
[1752052465504,8.99133468,152.31,152.3,0.046537]
[1752052467607,8.991648,152.31,152.3,0.046537]
[1752052469505,6.5642,152.32,152.3,0.046537]
[1752052469709,2.427048,152.32,152.3,0.046537]
[1752052470600,2.427048,152.33,152.3,0.046537]
[1752052471005,2.46897579,152.33,152.3,0.046537]
[1752052471503,9.03267579,152.33,152.3,6.611337]
[1752052473714,9.03267579,152.33,152.3,0.046537]
[1752052474411,6.5642,152.32,152.3,0.046537]
[1752052475914,6.5646,152.31,152.3,0.046537]
[1752052476213,8.991648,152.31,152.3,0.046537]
[1752052478613,6.5646,152.31,152.3,0.046537]
[1752052478914,8.991648,152.31,152.3,0.046537]
[1752052479712,6.5646,152.31,152.3,0.046537]
[1752052482811,2.427048,152.31,152.27,20.77754395]
[1752052483208,0.04192779,152.33,152.27,20.77754395]
[1752052483413,2.427048,152.31,152.27,20.77754395]
[1752052483713,2.427048,152.31,152.27,2.427048]
[1752052484519,8.991848,152.31,152.26,18.35049595]
[1752052484718,8.991848,152.31,152.27,2.427048]
[1752052485116,8.991848,152.31,152.27,20.77754395]
[1752052485316,8.991848,152.31,152.28,6.5658]
[1752052486318,8.991848,152.31,152.27,27.34354395]
[1752052486514,0.04192779,152.33,152.27,24.91649595]
[1752052486720,2.427048,152.3,152.27,24.91649595]
[1752052486921,2.427048,152.3,152.27,27.34354395]
[1752052488121,6.5648,152.31,152.27,27.34354395]
[1752052488321,8.991848,152.31,152.27,27.34354395]
[1752052492232,6.565,152.3,152.27,27.34354395]
[1752052492531,2.427048,152.3,152.27,18.35049595]
[1752052492733,2.427048,152.29,152.26,24.91699595]
[1752052493133,8.992748,152.29,152.27,18.35049595]
[1752052493632,8.992748,152.29,152.26,24.91699595]
[1752052493836,6.5659,152.28,152.26,18.35049595]
[1752052494034,6.5659,152.28,152.26,18.39266571]
[1752052496031,9.04299066,152.29,152.26,18.39266571]
[1752052497138,9.04299066,152.29,152.26,20.81971371]
[1752052497335,2.427048,152.28,152.26,0.04216976]
[1752052497633,2.427048,152.27,152.26,0.04216976]
[1752052498441,8.993348,152.27,152.26,0.04216976]
[1752052500541,6.5663,152.27,152.26,0.04216976]
[1752052500739,8.993348,152.27,152.26,0.04216976]
[1752052500938,6.5661,152.28,152.26,0.04216976]
[1752052501136,8.993148,152.28,152.26,0.04216976]
[1752052501534,6.5663,152.27,152.26,0.04216976]
[1752052501739,8.993348,152.27,152.26,0.04216976]
[1752052502436,6.5663,152.27,152.26,0.04216976]
[1752052502641,8.993048,152.28,152.26,0.04216976]
[1752052503039,0.05034266,152.29,152.26,0.04216976]
[1752052503242,0.05034266,152.29,152.27,2.427048]
[1752052503435,0.05034266,152.29,152.28,2.427048]
[1752052503640,0.05034266,152.29,152.27,6.5663]
[1752052503832,0.05034266,152.29,152.27,8.993348]
[1752052504039,0.05034266,152.29,152.26,18.39266571]
[1752052504237,2.47739066,152.29,152.26,0.04216976]
[1752052504742,2.47739066,152.29,152.26,2.46921776]
[1752052505142,0.05034266,152.29,152.27,6.566]
[1752052506145,0.05034266,152.29,152.28,6.5659]
[1752052509043,2.427048,152.33,152.28,2.427048]
[1752052509250,2.427048,152.36,152.32,2.427048]
[1752052509439,2.427048,152.36,152.33,2.427048]
[1752052509748,8.989248,152.37,152.33,8.990448]
[1752052510250,8.989248,152.37,152.33,9.04069631]
[1752052510849,6.5622,152.37,152.33,6.61364831]
[1752052512750,6.5625,152.36,152.33,0.05024831]
[1752052513446,6.5629,152.35,152.33,0.05024831]
[1752052515155,3.78890501,152.38,152.33,0.05024831]
[1752052516056,6.5627,152.36,152.33,0.05024831]
[1752052519555,6.5627,152.36,152.33,6.61384831]
[1752052520455,6.5627,152.36,152.33,0.05024831]
[1752052521660,6.5627,152.36,152.33,6.61384831]
[1752052521958,6.5627,152.36,152.33,0.05024831]
[1752052523260,10.35080501,152.38,152.33,0.05024831]
[1752052523460,10.35080501,152.38,152.33,6.61384831]
[1752052523958,3.78890501,152.41,152.34,3.78890501]
[1752052524660,6.5608,152.4,152.34,3.78890501]
[1752052524862,10.34970501,152.4,152.34,3.78890501]
[1752052525358,10.34970501,152.4,152.33,0.05024831]
[1752052525359,3.78890501,152.42,152.36,3.78890501]
[1752052525564,3.78890501,152.44,152.36,3.78890501]
[1752052525964,6.5596,152.43,152.38,0.04759226]
[1752052526164,3.78890501,152.44,152.38,0.04759226]
[1752052526665,6.5596,152.43,152.39,6.561]
[1752052529761,6.5599,152.42,152.39,6.561]
[1752052531360,3.78890501,152.44,152.38,6.60889226]
[1752052531863,3.78890501,152.44,152.38,0.04759226]